Workbook

Sheet Simpelt Input
B5: Prisen for en fejlrekruttering - en økonomisk beregner
B7: Kandidatomkostninger
B8: Omkostninger for kandidataens arbejdskraft.
B9: Årsløn inkl. pension
B10: Personalegoder | D10: F.eks. bil, telefon
B12: Kandidatens værditilførelse
B13: Den værdi kandidaten tilfører til virksomheden. OBS. Udfyld kun ét af felterne.
B14: Specifikt mål (f.eks. Et salgsmål) | D14: Udfyldes hvis der til stillingen er udarbejdet et specifikt mål. F.eks ved salg.
B15: I forhold til kandidatens løn | D15: Udfyldes hvis kandidaten forventes af tilføre sin løn samt et markup. Udfyldes i % - f.eks 160%, hvis kandidaten tilfører 60% overskud af sin løn.
B18: Rekrutteringsomkostninger
B19: Omkostninger før en kandidat er ansat.
B20: Annoncering | D20: Omkostninger i forbindelse med opstartsmøder, udarbejdelse af stillingsopslag, annoncering mv.
B21: Ekstern Konsulent | D21: samlet fee til ekstern konsulent, internt arbejde med konsulent mv.
B22: Tests | D22: Omkostninger i forbindelse med gennemgang af kandidater, testtagning, gennemgang af tests, tilbagemelding mv.
B23: Øvrige | D23: Andet.
B24: I alt til rekruttering | C24: =SUM(C20:C23) -> 0
B27: Onboardingomkostninger
B28: Omkostninger efter kandidaten er ansat som led i oplæring mv.
B29: Oplæring og kurser | D29: Omkostninger i forbindelse med oplæring af kandidaten.
B30: Indkøb af udstyr | D30: Omkostninger i forbindelse med indkøb af udstyr.
B31: Øvrige | D31: Andet.
B32: I alt til onboarding | C32: =SUM(C29:C31) -> 0
B35: Kandidatværdi efter:
B36: Prisen for kandidaten ved stop efter x antal måneder
B37: 6 mdr. | C37: 12 mdr. | D37: 18 mdr. | E37: 24 mdr.
B38: =-'Detaljer Simpel'!I15 -> 0 | C38: =-'Detaljer Simpel'!O15 -> 0 | D38: =-'Detaljer Simpel'!U15 -> 0 | E38: =-'Detaljer Simpel'!AA15 -> 0

Sheet Detaljer Simpel (hidden)
B3: Cashflow, udgifter
B4: Måned | C4: -1 | D4: 1 | E4: 2 | F4: 3 | G4: 4 | H4: 5 | I4: 6 | J4: 7 | K4: 8 | L4: 9 | M4: 10 | N4: 11 | O4: 12 | P4: 13 | Q4: 14 | R4: 15 | S4: 16 | T4: 17 | U4: 18 | V4: 19 | W4: 20 | X4: 21 | Y4: 22 | Z4: 23 | AA4: 24
B5: Headhunter | C5: ='Simpelt Input'!$C$21 -> 0 | D5: 0 | E5: 0 | F5: 0 | G5: 0 | H5: 0 | I5: 0 | J5: 0 | K5: 0 | L5: 0 | M5: 0 | N5: 0 | O5: 0 | P5: 0 | Q5: 0 | R5: 0 | S5: 0 | T5: 0 | U5: 0 | V5: 0 | W5: 0 | X5: 0 | Y5: 0 | Z5: 0 | AA5: 0
B6: Rekrutteringsomkostninger | C6: ='Simpelt Input'!$C$20+'Simpelt Input'!$C$22+'Simpelt Input'!$C$23+'Simpelt Input'!$C$10 -> 0 | D6: 0 | E6: 0 | F6: 0 | G6: 0 | H6: 0 | I6: 0 | J6: 0 | K6: 0 | L6: 0 | M6: 0 | N6: 0 | O6: 0 | P6: 0 | Q6: 0 | R6: 0 | S6: 0 | T6: 0 | U6: 0 | V6: 0 | W6: 0 | X6: 0 | Y6: 0 | Z6: 0 | AA6: 0
B7: Onboarding | C7: 0 | D7: ='Simpelt Input'!$C$32 -> 0 | E7: 0 | F7: 0 | G7: 0 | H7: 0 | I7: 0 | J7: 0 | K7: 0 | L7: 0 | M7: 0 | N7: 0 | O7: 0 | P7: 0 | Q7: 0 | R7: 0 | S7: 0 | T7: 0 | U7: 0 | V7: 0 | W7: 0 | X7: 0 | Y7: 0 | Z7: 0 | AA7: 0
B8: Løn til kandidat | C8: 0 | D8: ='Simpelt Input'!$C$9/12 -> 0 | E8: ='Simpelt Input'!$C$9/12 -> 0 | F8: ='Simpelt Input'!$C$9/12 -> 0 | G8: ='Simpelt Input'!$C$9/12 -> 0 | H8: ='Simpelt Input'!$C$9/12 -> 0 | I8: ='Simpelt Input'!$C$9/12 -> 0 | J8: ='Simpelt Input'!$C$9/12 -> 0 | K8: ='Simpelt Input'!$C$9/12 -> 0 | L8: ='Simpelt Input'!$C$9/12 -> 0 | M8: ='Simpelt Input'!$C$9/12 -> 0 | N8: ='Simpelt Input'!$C$9/12 -> 0 | O8: ='Simpelt Input'!$C$9/12 -> 0 | P8: ='Simpelt Input'!$C$9/12 -> 0 | Q8: ='Simpelt Input'!$C$9/12 -> 0 | R8: ='Simpelt Input'!$C$9/12 -> 0 | S8: ='Simpelt Input'!$C$9/12 -> 0 | T8: ='Simpelt Input'!$C$9/12 -> 0 | U8: ='Simpelt Input'!$C$9/12 -> 0 | V8: ='Simpelt Input'!$C$9/12 -> 0 | W8: ='Simpelt Input'!$C$9/12 -> 0 | X8: ='Simpelt Input'!$C$9/12 -> 0 | Y8: ='Simpelt Input'!$C$9/12 -> 0 | Z8: ='Simpelt Input'!$C$9/12 -> 0 | AA8: ='Simpelt Input'!$C$9/12 -> 0
B9: I alt | C9: =SUM(C5:C8) -> 0 | D9: =SUM(D5:D8) -> 0 | E9: 0 | F9: 0 | G9: 0 | H9: 0 | I9: 0 | J9: 0 | K9: 0 | L9: 0 | M9: 0 | N9: 0 | O9: 0 | P9: 0 | Q9: 0 | R9: 0 | S9: 0 | T9: 0 | U9: 0 | V9: 0 | W9: 0 | X9: 0 | Y9: 0 | Z9: 0 | AA9: 0
B11: Cashflow, indtægter
B12: Værdi for virksomhed | C12: 0 | D12: =IF('Simpelt Input'!$C$15>0,'Detaljer Simpel'!D18*'Detaljer Simpel'!D8,'Simpelt Input'!$C$14) -> 0 | E12: =IF('Simpelt Input'!$C$15>0,'Detaljer Simpel'!E18*'Detaljer Simpel'!E8,'Simpelt Input'!$C$14) -> 0 | F12: =IF('Simpelt Input'!$C$15>0,'Detaljer Simpel'!F18*'Detaljer Simpel'!F8,'Simpelt Input'!$C$14) -> 0 | G12: =IF('Simpelt Input'!$C$15>0,'Detaljer Simpel'!G18*'Detaljer Simpel'!G8,'Simpelt Input'!$C$14) -> 0 | H12: =IF('Simpelt Input'!$C$15>0,'Detaljer Simpel'!H18*'Detaljer Simpel'!H8,'Simpelt Input'!$C$14) -> 0 | I12: =IF('Simpelt Input'!$C$15>0,'Detaljer Simpel'!I18*'Detaljer Simpel'!I8,'Simpelt Input'!$C$14) -> 0 | J12: =IF('Simpelt Input'!$C$15>0,'Detaljer Simpel'!J18*'Detaljer Simpel'!J8,'Simpelt Input'!$C$14) -> 0 | K12: =IF('Simpelt Input'!$C$15>0,'Detaljer Simpel'!K18*'Detaljer Simpel'!K8,'Simpelt Input'!$C$14) -> 0 | L12: =IF('Simpelt Input'!$C$15>0,'Detaljer Simpel'!L18*'Detaljer Simpel'!L8,'Simpelt Input'!$C$14) -> 0 | M12: =IF('Simpelt Input'!$C$15>0,'Detaljer Simpel'!M18*'Detaljer Simpel'!M8,'Simpelt Input'!$C$14) -> 0 | N12: =IF('Simpelt Input'!$C$15>0,'Detaljer Simpel'!N18*'Detaljer Simpel'!N8,'Simpelt Input'!$C$14) -> 0 | O12: =IF('Simpelt Input'!$C$15>0,'Detaljer Simpel'!O18*'Detaljer Simpel'!O8,'Simpelt Input'!$C$14) -> 0 | P12: =IF('Simpelt Input'!$C$15>0,'Detaljer Simpel'!P18*'Detaljer Simpel'!P8,'Simpelt Input'!$C$14) -> 0 | Q12: =IF('Simpelt Input'!$C$15>0,'Detaljer Simpel'!Q18*'Detaljer Simpel'!Q8,'Simpelt Input'!$C$14) -> 0 | R12: =IF('Simpelt Input'!$C$15>0,'Detaljer Simpel'!R18*'Detaljer Simpel'!R8,'Simpelt Input'!$C$14) -> 0 | S12: =IF('Simpelt Input'!$C$15>0,'Detaljer Simpel'!S18*'Detaljer Simpel'!S8,'Simpelt Input'!$C$14) -> 0 | T12: =IF('Simpelt Input'!$C$15>0,'Detaljer Simpel'!T18*'Detaljer Simpel'!T8,'Simpelt Input'!$C$14) -> 0 | U12: =IF('Simpelt Input'!$C$15>0,'Detaljer Simpel'!U18*'Detaljer Simpel'!U8,'Simpelt Input'!$C$14) -> 0 | V12: =IF('Simpelt Input'!$C$15>0,'Detaljer Simpel'!V18*'Detaljer Simpel'!V8,'Simpelt Input'!$C$14) -> 0 | W12: =IF('Simpelt Input'!$C$15>0,'Detaljer Simpel'!W18*'Detaljer Simpel'!W8,'Simpelt Input'!$C$14) -> 0 | X12: =IF('Simpelt Input'!$C$15>0,'Detaljer Simpel'!X18*'Detaljer Simpel'!X8,'Simpelt Input'!$C$14) -> 0 | Y12: =IF('Simpelt Input'!$C$15>0,'Detaljer Simpel'!Y18*'Detaljer Simpel'!Y8,'Simpelt Input'!$C$14) -> 0 | Z12: =IF('Simpelt Input'!$C$15>0,'Detaljer Simpel'!Z18*'Detaljer Simpel'!Z8,'Simpelt Input'!$C$14) -> 0 | AA12: =IF('Simpelt Input'!$C$15>0,'Detaljer Simpel'!AA18*'Detaljer Simpel'!AA8,'Simpelt Input'!$C$14) -> 0
B13: I alt | C13: =SUM(C12:C12) -> 0 | D13: 0 | E13: 0 | F13: 0 | G13: 0 | H13: 0 | I13: 0 | J13: 0 | K13: 0 | L13: 0 | M13: 0 | N13: 0 | O13: 0 | P13: 0 | Q13: 0 | R13: 0 | S13: 0 | T13: 0 | U13: 0 | V13: 0 | W13: 0 | X13: 0 | Y13: 0 | Z13: 0 | AA13: 0
B15: Omkostning, hvis stop efter md. | C15: 0 | D15: =C9+D9-D13 -> 0 | E15: =D15+E9-E13 -> 0 | F15: 0 | G15: 0 | H15: 0 | I15: 0 | J15: 0 | K15: 0 | L15: 0 | M15: 0 | N15: 0 | O15: 0 | P15: 0 | Q15: 0 | R15: 0 | S15: 0 | T15: 0 | U15: 0 | V15: 0 | W15: 0 | X15: 0 | Y15: 0 | Z15: 0 | AA15: 0
B16: Rene rekrutteringsomkostninger | C16: 0 | D16: =$C$9 -> 0 | E16: =D16+E9-E8 -> 0 | F16: 0 | G16: 0 | H16: 0 | I16: 0 | J16: 0 | K16: 0 | L16: 0 | M16: 0 | N16: 0 | O16: 0 | P16: 0 | Q16: 0 | R16: 0 | S16: 0 | T16: 0 | U16: 0 | V16: 0 | W16: 0 | X16: 0 | Y16: 0 | Z16: 0 | AA16: 0
B18: Faktureringsgrad | C18: 0 | D18: ='Simpelt Input'!$C$15 -> 0 | E18: ='Simpelt Input'!$C$15 -> 0 | F18: ='Simpelt Input'!$C$15 -> 0 | G18: ='Simpelt Input'!$C$15 -> 0 | H18: ='Simpelt Input'!$C$15 -> 0 | I18: ='Simpelt Input'!$C$15 -> 0 | J18: ='Simpelt Input'!$C$15 -> 0 | K18: ='Simpelt Input'!$C$15 -> 0 | L18: ='Simpelt Input'!$C$15 -> 0 | M18: ='Simpelt Input'!$C$15 -> 0 | N18: ='Simpelt Input'!$C$15 -> 0 | O18: ='Simpelt Input'!$C$15 -> 0 | P18: ='Simpelt Input'!$C$15 -> 0 | Q18: ='Simpelt Input'!$C$15 -> 0 | R18: ='Simpelt Input'!$C$15 -> 0 | S18: ='Simpelt Input'!$C$15 -> 0 | T18: ='Simpelt Input'!$C$15 -> 0 | U18: ='Simpelt Input'!$C$15 -> 0 | V18: ='Simpelt Input'!$C$15 -> 0 | W18: ='Simpelt Input'!$C$15 -> 0 | X18: ='Simpelt Input'!$C$15 -> 0 | Y18: ='Simpelt Input'!$C$15 -> 0 | Z18: ='Simpelt Input'!$C$15 -> 0 | AA18: ='Simpelt Input'!$C$15 -> 0
B29: Rekrutteringsomkostninger | C29: =SUM(C5:C7) -> 0 | D29: =C29+SUM(D5:D7) -> 0 | E29: 0 | F29: 0 | G29: 0 | H29: 0 | I29: 0 | J29: 0 | K29: 0 | L29: 0 | M29: 0 | N29: 0 | O29: 0 | P29: 0 | Q29: 0 | R29: 0 | S29: 0 | T29: 0 | U29: 0 | V29: 0 | W29: 0 | X29: 0 | Y29: 0 | Z29: 0 | AA29: 0
B30: Totalomkostninger | C30: =C29+C8 -> 0 | D30: =C30+D9 -> 0 | E30: 0 | F30: 0 | G30: 0 | H30: 0 | I30: 0 | J30: 0 | K30: 0 | L30: 0 | M30: 0 | N30: 0 | O30: 0 | P30: 0 | Q30: 0 | R30: 0 | S30: 0 | T30: 0 | U30: 0 | V30: 0 | W30: 0 | X30: 0 | Y30: 0 | Z30: 0 | AA30: 0
B31: Indtægter | C31: =C13 -> 0 | D31: =C31+D13 -> 0 | E31: 0 | F31: 0 | G31: 0 | H31: 0 | I31: 0 | J31: 0 | K31: 0 | L31: 0 | M31: 0 | N31: 0 | O31: 0 | P31: 0 | Q31: 0 | R31: 0 | S31: 0 | T31: 0 | U31: 0 | V31: 0 | W31: 0 | X31: 0 | Y31: 0 | Z31: 0 | AA31: 0
B32: ROI (rekruttering) | C32: =(C31-C29)/C29 ->  | D32: =(D31-D29)/D29 ->  | E32: =(E31-E29)/E29 ->  | F32: =(F31-F29)/F29 ->  | G32: =(G31-G29)/G29 -> 
B33: ROI (total) | C33: =(C31-C30)/C30 ->  | D33: =(D31-D30)/D30 ->  | E33: =(E31-E30)/E30 ->  | F33: =(F31-F30)/F30 -> 

Sheet Hjælpemidler (Simpel)
B5: Return on investment:
C6: 6 mdr | D6: 12 mdr | E6: 18 mdr | F6: 24 mdr
B7: Værditilførelse (indtægter): | C7: ='Detaljer Simpel'!I31 -> 0 | D7: ='Detaljer Simpel'!O31 -> 0 | E7: ='Detaljer Simpel'!U31 -> 0 | F7: ='Detaljer Simpel'!AA31 -> 0
B8: Totalomkostninger: | C8: ='Detaljer Simpel'!I30 -> 0 | D8: ='Detaljer Simpel'!O30 -> 0 | E8: ='Detaljer Simpel'!U30 -> 0 | F8: ='Detaljer Simpel'!AA30 -> 0
B9: ROI (rekrutter- ingsomkostninger): | C9: ='Detaljer Simpel'!I32 ->  | D9: ='Detaljer Simpel'!O32 ->  | E9: ='Detaljer Simpel'!U32 ->  | F9: ='Detaljer Simpel'!AA32 -> 
B10: ROI (totale omkostninger): | C10: ='Detaljer Simpel'!I33 ->  | D10: ='Detaljer Simpel'!O33 ->  | E10: ='Detaljer Simpel'!U33 ->  | F10: ='Detaljer Simpel'!AA33 -> 
B14: Break-even:
B35: Kandidatværdi efter:
B36: Prisen for kandidaten ved stop efter x antal måneder
B38: 6 mdr. | C38: 12 mdr. | D38: 18 mdr. | E38: 24 mdr.
B39: ='Simpelt Input'!B38 -> 0 | C39: ='Simpelt Input'!C38 -> 0 | D39: ='Simpelt Input'!D38 -> 0 | E39: ='Simpelt Input'!E38 -> 0

Sheet Udvidet input
B4: Prisen for en fejlrekruttering - en økonomisk beregner
B5: Kandidatværdi efter:
B6: Prisen for kandidaten ved stop efter x antal måneder
B7: 6 mdr. | C7: 12 mdr. | D7: 18 mdr. | E7: 24 mdr.
B8: =-'Detaljer (Udvidet)'!I16 -> 0 | C8: =-'Detaljer (Udvidet)'!O16 -> 0 | D8: =-'Detaljer (Udvidet)'!U16 -> 0 | E8: =-'Detaljer (Udvidet)'!AA16 -> 0
B11: Deltagere i rekrutteringsprocessen | C11: Årsløn | D11: Udfyld de relevante deltagere og tryk på start
B12: HR | N12: Kategori | O12: Anvendt timeløn
B13: IT | N13: =B12 -> HR | O13: =C12/'Stamoplysninger (eksempel)'!$D$4 -> 0
B14: Jurist | N14: IT | O14: =C13/'Stamoplysninger (eksempel)'!$D$4 -> 0
B15: Kollega | N15: Jurist | O15: =C14/'Stamoplysninger (eksempel)'!$D$4 -> 0
B16: Leder | N16: Kollega | O16: =C15/'Stamoplysninger (eksempel)'!$D$4 -> 0
B17: VP | N17: Leder | O17: =C16/'Stamoplysninger (eksempel)'!$D$4 -> 0
N18: VP | O18: =C17/'Stamoplysninger (eksempel)'!$D$4 -> 0
N19: 0 | O19: =C18/'Stamoplysninger (eksempel)'!$D$4 -> 0
N20: 0 | O20: =C19/'Stamoplysninger (eksempel)'!$D$4 -> 0
B21: Kandidat
B22: Årsløn inkl. pension
B23: Personalegoder | D23: F.eks. bil, telefon
B24: Timeantal (pr. år)
B25: Fuldt effektiv | C25: 6 | D25: Tiden før kandidaten er fuldt effektiv for virksomheden
B26: Performance ved fuld effektivitet | C26: 1.6 | D26: Den værdi kandidaten tilfører virksomheden ved fuld effektivitet (procentdel af årsløn).
B28: Udfyld nedenstående skema med de involverede og konkrete omkostninger
B29: Rekrutteringsomkostninger
B30: Medarbejdere, der deltager i aktiviteten med deres tidsforbrug samt de reelle omkostninger ved aktiviteten.
B32: Aktivitet | C32: Deltager A | D32: Deltager B | E32: Deltager C | F32: Tidsforbrug -A (i min) | G32: Tidsforbrug - B (i min) | H32: Tidsforbrug - C (i min) | I32: Omkostning | J32: I alt
B33: Opstartsmøde | J33: =VLOOKUP(C33,$N$13:$O$20,2)*F33/60+VLOOKUP(D33,$N$13:$O$20,2)*G33/60+VLOOKUP(E33,$N$13:$O$20,2)*H33/60+I33 -> 0 | K33: Fastlæggelse af kriterier og krav til kandidaten
B34: Udarbejdesle af stillingsopslag | J34: =VLOOKUP(C34,$N$13:$O$20,2)*F34/60+VLOOKUP(D34,$N$13:$O$20,2)*G34/60+VLOOKUP(E34,$N$13:$O$20,2)*H34/60+I34 -> 0
B35: Annoncering | J35: =VLOOKUP(C35,$N$13:$O$20,2)*F35/60+VLOOKUP(D35,$N$13:$O$20,2)*G35/60+VLOOKUP(E35,$N$13:$O$20,2)*H35/60+I35 -> 0 | K35: Annonceudgifter og styringen af annoncen
B36: Øvrige | J36: =VLOOKUP(C36,$N$13:$O$20,2)*F36/60+VLOOKUP(D36,$N$13:$O$20,2)*G36/60+VLOOKUP(E36,$N$13:$O$20,2)*H36/60+I36 -> 0 | K36: Både intern tid og reelle udgifter
B37: I alt til annoncering | J37: =SUM(J33:J36) -> 0
B39: Samlet fee til ekstern konsulent | J39: =VLOOKUP(C39,$N$13:$O$20,2)*F39/60+VLOOKUP(D39,$N$13:$O$20,2)*G39/60+VLOOKUP(E39,$N$13:$O$20,2)*H39/60+I39 -> 0 | K39: Den samlede betaling til en headhunter
B40: Internt arbejde med konsulent | J40: =VLOOKUP(C40,$N$13:$O$20,2)*F40/60+VLOOKUP(D40,$N$13:$O$20,2)*G40/60+VLOOKUP(E40,$N$13:$O$20,2)*H40/60+I40 -> 0 | K40: Dialog med headhunter frem mod samtalerne
B41: Øvrige | J41: =VLOOKUP(C41,$N$13:$O$20,2)*F41/60+VLOOKUP(D41,$N$13:$O$20,2)*G41/60+VLOOKUP(E41,$N$13:$O$20,2)*H41/60+I41 -> 0 | K41: Både intern tid og reelle udgifter
B42: I alt til ekstern konsulent | J42: =SUM(J39:J41) -> 0
B44: Gennemgang af kandidater | J44: =VLOOKUP(C44,$N$13:$O$20,2)*F44/60+VLOOKUP(D44,$N$13:$O$20,2)*G44/60+VLOOKUP(E44,$N$13:$O$20,2)*H44/60+I44 -> 0 | K44: Håndtering, gennemgang og udvælgelse af kandidater
B45: Testtagning | J45: =VLOOKUP(C45,$N$13:$O$20,2)*F45/60+VLOOKUP(D45,$N$13:$O$20,2)*G45/60+VLOOKUP(E45,$N$13:$O$20,2)*H45/60+I45 -> 0 | K45: Tid og omkostninger til testning af kandidater
B46: Gennemgang af test | J46: =VLOOKUP(C46,$N$13:$O$20,2)*F46/60+VLOOKUP(D46,$N$13:$O$20,2)*G46/60+VLOOKUP(E46,$N$13:$O$20,2)*H46/60+I46 -> 0 | K46: Gennemgang og vurdering af kandidater
B47: Tilbagemelding | J47: =VLOOKUP(C47,$N$13:$O$20,2)*F47/60+VLOOKUP(D47,$N$13:$O$20,2)*G47/60+VLOOKUP(E47,$N$13:$O$20,2)*H47/60+I47 -> 0 | K47: Tilbagemelding til fravalgte kandidater
B48: Øvrige | J48: =VLOOKUP(C48,$N$13:$O$20,2)*F48/60+VLOOKUP(D48,$N$13:$O$20,2)*G48/60+VLOOKUP(E48,$N$13:$O$20,2)*H48/60+I48 -> 0 | K48: Både intern tid og reelle udgifter
B49: I alt til test | J49: =SUM(J44:J48) -> 0
B51: 1. samtale | J51: =VLOOKUP(C51,$N$13:$O$20,2)*F51/60+VLOOKUP(D51,$N$13:$O$20,2)*G51/60+VLOOKUP(E51,$N$13:$O$20,2)*H51/60+I51 -> 0 | K51: Omkostninger ved samtaler i 1. runde
B52: Evaluering efter 1. samtale | J52: 0 | K52: Omkostninger ved evaluering af samtaler
B53: 2. samtale | J53: 0 | K53: Omkostninger ved samtaler i 2. runde
B54: Evaluering efter 2. samtale | J54: 0 | K54: Omkostninger ved evaluering af samtaler
B55: 3. samtale | J55: 0 | K55: Omkostninger ved samtaler i 3. runde
B56: Evaluering efter 2. samtale | J56: 0 | K56: Omkostninger ved evaluering af samtaler
B57: Øvrige | J57: 0 | K57: Både intern tid og reelle udgifter
B58: I alt til samtaler | J58: =SUM(J51:J56) -> 0
B60: Afslag | J60: =VLOOKUP(C60,$N$13:$O$20,2)*F60/60+VLOOKUP(D60,$N$13:$O$20,2)*G60/60+VLOOKUP(E60,$N$13:$O$20,2)*H60/60+I60 -> 0 | K60: Omkostning ved udarbejdelse og evt. dialog med kandidater
B61: Øvrige | J61: =VLOOKUP(C61,$N$13:$O$20,2)*F61/60+VLOOKUP(D61,$N$13:$O$20,2)*G61/60+VLOOKUP(E61,$N$13:$O$20,2)*H61/60+I61 -> 0 | K61: Både intern tid og reelle udgifter
B62: I alt til håndtering af afslag | J62: =SUM(J60:J61) -> 0
B64: Referencetagning på kandidaten | J64: =VLOOKUP(C64,$N$13:$O$20,2)*F64/60+VLOOKUP(D64,$N$13:$O$20,2)*G64/60+VLOOKUP(E64,$N$13:$O$20,2)*H64/60+I64 -> 0
B65: Lønforhandling | J65: 0
B66: Kontraktudarbejdelse | J66: 0
B67: 1. Kontraktgennemgang | J67: 0
B68: Kontraktjustering | J68: 0
B69: 2. Kontraktgennemgang | J69: 0
B70: Øvrige | J70: 0 | K70: Både intern tid og reelle udgifter
B71: I alt til løn- og kontraktforhold | J71: =SUM(J64:J70) -> 0
B73: Onboardingomkostninger
B74: Omkostninger efter kandidaten er ansat som led i oplæring mv.
B76: Aktiviteter | C76: Medarbejder A | D76: Medarbejder B | E76: Medarbejder C | F76: Tidsforbrug -A (i min) | G76: Tidsforbrug - B (i min) | H76: Tidsforbrug - C (i min) | I76: Omkostning | J76: I alt
B77: Preboarding | J77: =VLOOKUP(C77,$N$13:$O$20,2)*F77/60+VLOOKUP(D77,$N$13:$O$20,2)*G77/60+VLOOKUP(E77,$N$13:$O$20,2)*H77/60+I77 -> 0 | K77: Omkostninger afholdt inden kandidatens start
B78: Pensionsmøde | J78: 0 | K78: Tid med pensionsleverandøren
B79: Lønregistrering | J79: 0
B80: Kurser | J80: 0
B81: Kendskab til kollegaer | J81: 0
B82: Administrativ onboarding | J82: 0
B83: Teknisk support | J83: 0
B84: Mentorordning | J84: 0
B85: Indkøb af udstyr | J85: 0 | K85: Køb af skrivebord, stol, PC, visitkort
J86: 0
J87: 0
J88: 0
B89: I alt til onboarding | J89: =SUM(J78:J88) -> 0
B92: Kandidatværdi efter:
B93: Prisen for kandidaten ved stop efter x antal måneder
B94: 6 mdr. | C94: 12 mdr. | D94: 18 mdr. | E94: 24 mdr.
B95: =B8 -> 0 | C95: =C8 -> 0 | D95: =D8 -> 0 | E95: =E8 -> 0

Sheet Hjælpemidler (Udvidet)
B5: Return on investment:
C7: 6 mdr | D7: 12 mdr | E7: 18 mdr | F7: 24 mdr
B8: Værditilførelse (indtægter): | C8: ='Detaljer (Udvidet)'!I38 -> 0 | D8: ='Detaljer (Udvidet)'!O38 -> 0 | E8: ='Detaljer (Udvidet)'!U38 -> 0 | F8: ='Detaljer (Udvidet)'!AA38 -> 0
B9: Totalomkostninger: | C9: ='Detaljer (Udvidet)'!I37 -> 0 | D9: ='Detaljer (Udvidet)'!O37 -> 0 | E9: ='Detaljer (Udvidet)'!U37 -> 0 | F9: ='Detaljer (Udvidet)'!AA37 -> 0
B10: ROI (rekrutter- ingsomkostninger): | C10: ='Detaljer (Udvidet)'!I39 ->  | D10: ='Detaljer (Udvidet)'!O39 ->  | E10: ='Detaljer (Udvidet)'!U39 ->  | F10: ='Detaljer (Udvidet)'!AA39 -> 
B11: ROI (totale omkostninger): | C11: ='Detaljer (Udvidet)'!I40 ->  | D11: ='Detaljer (Udvidet)'!O40 ->  | E11: ='Detaljer (Udvidet)'!U40 ->  | F11: ='Detaljer (Udvidet)'!AA40 -> 
B14: Break-even:
B35: Kandidatværdi efter:
B36: Prisen for kandidaten ved stop efter x antal måneder
B38: 6 mdr. | C38: 12 mdr. | D38: 18 mdr. | E38: 24 mdr.
B39: ='Udvidet input'!B95 -> 0 | C39: ='Udvidet input'!C95 -> 0 | D39: ='Udvidet input'!D95 -> 0 | E39: ='Udvidet input'!E95 -> 0

Sheet Eksempel (Udvidet)
B4: Prisen for en fejlrekruttering - en økonomisk beregner
B5: Kandidatværdi efter:
B6: Prisen for kandidaten ved stop efter x antal måneder
B7: 6 mdr. | C7: 12 mdr. | D7: 18 mdr. | E7: 24 mdr.
B8: =-'Detaljer (eksempel)'!I16 -> -466645.5809 | C8: =-'Detaljer (eksempel)'!O16 -> -196645.5809 | D8: =-'Detaljer (eksempel)'!U16 -> 73354.4191 | E8: =-'Detaljer (eksempel)'!AA16 -> 343354.4191
B11: Deltagere i rekrutteringsprocessen | C11: Årsløn | D11: Udfyld de relevante deltagere og tryk på start
B12: HR | C12: 400000 | N12: Kategori | O12: Anvendt timeløn
B13: IT | C13: 400000 | N13: =B12 -> HR | O13: =C12/'Stamoplysninger (eksempel)'!$D$4 -> 277.7777778
B14: Jurist | C14: 666666 | N14: IT | O14: =C13/'Stamoplysninger (eksempel)'!$D$4 -> 277.7777778
B15: Kollega | C15: 800000 | N15: Jurist | O15: =C14/'Stamoplysninger (eksempel)'!$D$4 -> 462.9625
B16: Leder | C16: 700000 | N16: Kollega | O16: =C15/'Stamoplysninger (eksempel)'!$D$4 -> 555.5555556
B17: VP | C17: 1200000 | N17: Leder | O17: =C16/'Stamoplysninger (eksempel)'!$D$4 -> 486.1111111
N18: VP | O18: =C17/'Stamoplysninger (eksempel)'!$D$4 -> 833.3333333
N19: 0 | O19: =C18/'Stamoplysninger (eksempel)'!$D$4 -> 0
N20: 0 | O20: =C19/'Stamoplysninger (eksempel)'!$D$4 -> 0
B21: Kandidat
B22: Årsløn inkl. pension | C22: 900000
B23: Personalegoder | C23: 200000 | D23: F.eks. bil, telefon
B24: Timeantal (pr. år) | C24: 1440
B25: Fuldt effektiv | C25: 6 | D25: Tiden før kandidaten er fuldt effektiv for virksomheden
B26: Performance ved fuld effektivitet | C26: 1.6
B28: Udfyld nedenstående skema med de involverede og konkrete omkostninger
B29: Rekrutteringsomkostninger
B30: Medarbejdere, der deltager i aktiviteten med deres tidsforbrug samt de reelle omkostninger ved aktiviteten.
B32: Aktivitet | C32: Deltager A | D32: Deltager B | E32: Deltager C | F32: Tidsforbrug -A (i min) | G32: Tidsforbrug - B (i min) | H32: Tidsforbrug - C (i min) | I32: Omkostning | J32: I alt
B33: Opstartsmøde | C33: Leder | D33: HR | F33: 60 | G33: 60 | J33: =VLOOKUP(C33,$N$13:$O$20,2)*F33/60+VLOOKUP(D33,$N$13:$O$20,2)*G33/60+VLOOKUP(E33,$N$13:$O$20,2)*H33/60+I33 -> 763.8888889 | K33: Fastlæggelse af kriterier og krav til kandidaten
B34: Udarbejdesle af stillingsopslag | C34: Leder | D34: HR | E34: HR | F34: 60 | G34: 60 | H34: 60 | J34: =VLOOKUP(C34,$N$13:$O$20,2)*F34/60+VLOOKUP(D34,$N$13:$O$20,2)*G34/60+VLOOKUP(E34,$N$13:$O$20,2)*H34/60+I34 -> 1041.666667
B35: Annoncering | C35: HR | F35: 60 | G35: 60 | H35: 60 | I35: 5000 | J35: =VLOOKUP(C35,$N$13:$O$20,2)*F35/60+VLOOKUP(D35,$N$13:$O$20,2)*G35/60+VLOOKUP(E35,$N$13:$O$20,2)*H35/60+I35 -> 5277.777778 | K35: Annonceudgifter og styringen af annoncen
B36: Øvrige | J36: =VLOOKUP(C36,$N$13:$O$20,2)*F36/60+VLOOKUP(D36,$N$13:$O$20,2)*G36/60+VLOOKUP(E36,$N$13:$O$20,2)*H36/60+I36 -> 0 | K36: Både intern tid og reelle udgifter
B37: I alt til annoncering | J37: =SUM(J33:J36) -> 7083.333333
B39: Samlet fee til ekstern konsulent | I39: 200000 | J39: =VLOOKUP(C39,$N$13:$O$20,2)*F39/60+VLOOKUP(D39,$N$13:$O$20,2)*G39/60+VLOOKUP(E39,$N$13:$O$20,2)*H39/60+I39 -> 200000 | K39: Den samlede betaling til en headhunter
B40: Internt arbejde med konsulent | C40: HR | D40: VP | E40: Jurist | F40: 120 | G40: 120 | H40: 120 | I40: 10000 | J40: =VLOOKUP(C40,$N$13:$O$20,2)*F40/60+VLOOKUP(D40,$N$13:$O$20,2)*G40/60+VLOOKUP(E40,$N$13:$O$20,2)*H40/60+I40 -> 13148.14722 | K40: Dialog med headhunter frem mod samtalerne
B41: Øvrige | C41: HR | F41: 60 | G41: 60 | H41: 60 | J41: =VLOOKUP(C41,$N$13:$O$20,2)*F41/60+VLOOKUP(D41,$N$13:$O$20,2)*G41/60+VLOOKUP(E41,$N$13:$O$20,2)*H41/60+I41 -> 277.7777778 | K41: Både intern tid og reelle udgifter
B42: I alt til ekstern konsulent | J42: =SUM(J39:J41) -> 213425.925
B44: Gennemgang af kandidater | C44: HR | F44: 180 | G44: 180 | H44: 180 | J44: =VLOOKUP(C44,$N$13:$O$20,2)*F44/60+VLOOKUP(D44,$N$13:$O$20,2)*G44/60+VLOOKUP(E44,$N$13:$O$20,2)*H44/60+I44 -> 833.3333333 | K44: Håndtering, gennemgang og udvælgelse af kandidater
B45: Testtagning | C45: HR | F45: 60 | G45: 60 | H45: 60 | I45: 1200 | J45: =VLOOKUP(C45,$N$13:$O$20,2)*F45/60+VLOOKUP(D45,$N$13:$O$20,2)*G45/60+VLOOKUP(E45,$N$13:$O$20,2)*H45/60+I45 -> 1477.777778 | K45: Tid og omkostninger til testning af kandidater
B46: Gennemgang af test | C46: Leder | D46: HR | E46: HR | F46: 180 | G46: 180 | H46: 180 | J46: =VLOOKUP(C46,$N$13:$O$20,2)*F46/60+VLOOKUP(D46,$N$13:$O$20,2)*G46/60+VLOOKUP(E46,$N$13:$O$20,2)*H46/60+I46 -> 3125 | K46: Gennemgang og vurdering af kandidater
B47: Tilbagemelding | C47: HR | F47: 120 | J47: =VLOOKUP(C47,$N$13:$O$20,2)*F47/60+VLOOKUP(D47,$N$13:$O$20,2)*G47/60+VLOOKUP(E47,$N$13:$O$20,2)*H47/60+I47 -> 555.5555556 | K47: Tilbagemelding til fravalgte kandidater
B48: Øvrige | J48: =VLOOKUP(C48,$N$13:$O$20,2)*F48/60+VLOOKUP(D48,$N$13:$O$20,2)*G48/60+VLOOKUP(E48,$N$13:$O$20,2)*H48/60+I48 -> 0 | K48: Både intern tid og reelle udgifter
B49: I alt til test | J49: =SUM(J44:J48) -> 5991.666667
B51: 1. samtale | C51: Leder | D51: HR | E51: HR | F51: 360 | G51: 360 | H51: 360 | J51: =VLOOKUP(C51,$N$13:$O$20,2)*F51/60+VLOOKUP(D51,$N$13:$O$20,2)*G51/60+VLOOKUP(E51,$N$13:$O$20,2)*H51/60+I51 -> 6250 | K51: Omkostninger ved samtaler i 1. runde
B52: Evaluering efter 1. samtale | C52: Leder | D52: HR | E52: HR | F52: 60 | G52: 60 | H52: 60 | J52: 1041.666667 | K52: Omkostninger ved evaluering af samtaler
B53: 2. samtale | C53: Leder | D53: HR | E53: HR | F53: 180 | G53: 180 | H53: 180 | J53: 3125 | K53: Omkostninger ved samtaler i 2. runde
B54: Evaluering efter 2. samtale | C54: Leder | D54: HR | E54: HR | F54: 30 | G54: 30 | H54: 30 | J54: 520.8333333 | K54: Omkostninger ved evaluering af samtaler
B55: 3. samtale | C55: Leder | D55: HR | E55: HR | F55: 120 | G55: 120 | H55: 120 | J55: 2083.333333 | K55: Omkostninger ved samtaler i 3. runde
B56: Evaluering efter 2. samtale | C56: Leder | D56: HR | E56: HR | F56: 30 | G56: 30 | H56: 30 | J56: 520.8333333 | K56: Omkostninger ved evaluering af samtaler
B57: Øvrige | I57: 2000 | J57: 2000 | K57: Både intern tid og reelle udgifter
B58: I alt til samtaler | J58: =SUM(J51:J56) -> 13541.66667
B60: Afslag | C60: HR | F60: 300 | G60: 300 | H60: 300 | J60: =VLOOKUP(C60,$N$13:$O$20,2)*F60/60+VLOOKUP(D60,$N$13:$O$20,2)*G60/60+VLOOKUP(E60,$N$13:$O$20,2)*H60/60+I60 -> 1388.888889 | K60: Omkostning ved udarbejdelse og evt. dialog med kandidater
B61: Øvrige | C61: HR | F61: 30 | G61: 30 | H61: 30 | J61: =VLOOKUP(C61,$N$13:$O$20,2)*F61/60+VLOOKUP(D61,$N$13:$O$20,2)*G61/60+VLOOKUP(E61,$N$13:$O$20,2)*H61/60+I61 -> 138.8888889 | K61: Både intern tid og reelle udgifter
B62: I alt til håndtering af afslag | J62: =SUM(J60:J61) -> 1527.777778
B64: Referencetagning på kandidaten | C64: Leder | F64: 90 | G64: 90 | H64: 90 | J64: =VLOOKUP(C64,$N$13:$O$20,2)*F64/60+VLOOKUP(D64,$N$13:$O$20,2)*G64/60+VLOOKUP(E64,$N$13:$O$20,2)*H64/60+I64 -> 729.1666667
B65: Lønforhandling | C65: Leder | D65: VP | E65: VP | F65: 90 | G65: 90 | H65: 90 | J65: 3229.166667
B66: Kontraktudarbejdelse | C66: Leder | D66: Jurist | E66: Jurist | F66: 120 | G66: 120 | H66: 120 | J66: 2824.072222
B67: 1. Kontraktgennemgang | C67: Leder | F67: 60 | G67: 60 | H67: 60 | J67: 486.1111111
B68: Kontraktjustering | C68: Leder | D68: Jurist | E68: Jurist | F68: 45 | G68: 45 | H68: 45 | J68: 1059.027083
B69: 2. Kontraktgennemgang | C69: Leder | F69: 30 | G69: 30 | H69: 30 | J69: 243.0555556
B70: Øvrige | J70: 0 | K70: Både intern tid og reelle udgifter
B71: I alt til løn- og kontraktforhold | J71: =SUM(J64:J70) -> 8570.599306
B73: Onboardingomkostninger
B74: Omkostninger efter kandidaten er ansat som led i oplæring mv.
B76: Aktiviteter | C76: Medarbejder A | D76: Medarbejder B | E76: Medarbejder C | F76: Tidsforbrug -A (i min) | G76: Tidsforbrug - B (i min) | H76: Tidsforbrug - C (i min) | I76: Omkostning | J76: I alt
B77: Preboarding | C77: Leder | F77: 90 | J77: =VLOOKUP(C77,$N$13:$O$20,2)*F77/60+VLOOKUP(D77,$N$13:$O$20,2)*G77/60+VLOOKUP(E77,$N$13:$O$20,2)*H77/60+I77 -> 729.1666667 | K77: Omkostninger afholdt inden kandidatens start
B78: Pensionsmøde | C78: Kandidat | F78: 90 | G78: 90 | H78: 90 | J78: 694.44375 | K78: Tid med pensionsleverandøren
B79: Lønregistrering | C79: Kandidat | D79: HR | E79: HR | F79: 45 | G79: 45 | H79: 45 | J79: 763.8885417
B80: Kurser | C80: Kandidat | D80: Leder | E80: Leder | F80: 600 | G80: 600 | H80: 600 | J80: 14351.84722
B81: Kendskab til kollegaer | C81: Kandidat | D81: Kollega | E81: Kollega | F81: 120 | G81: 120 | H81: 120 | J81: 3148.147222
B82: Administrativ onboarding | C82: Kandidat | D82: IT | E82: IT | F82: 90 | G82: 90 | H82: 90 | J82: 1527.777083
B83: Teknisk support | C83: Kandidat | D83: IT | E83: IT | F83: 120 | G83: 120 | H83: 120 | J83: 2037.036111
B84: Mentorordning | C84: Kandidat | D84: Kollega | E84: Kollega | F84: 1200 | G84: 1200 | H84: 1200 | J84: 31481.47222
B85: Indkøb af udstyr | I85: 20000 | J85: 20000 | K85: Køb af skrivebord, stol, PC, visitkort
J86: 0
J87: 0
J88: 0
B89: I alt til onboarding | J89: =SUM(J78:J88) -> 74004.61215
B92: Kandidatværdi efter:
B93: Prisen for kandidaten ved stop efter x antal måneder
B94: 6 mdr. | C94: 12 mdr. | D94: 18 mdr. | E94: 24 mdr.
B95: =B8 -> -466645.5809 | C95: =C8 -> -196645.5809 | D95: =D8 -> 73354.4191 | E95: =E8 -> 343354.4191

Sheet Ark1 (hidden)

Sheet Stamoplysninger (eksempel) (hidden)
C2: Stamoplysning til beregninger
C4: Årsværk | D4: 1440
C5: Effektivitet | D5: ='Eksempel (Udvidet)'!C26 -> 1.6

Sheet Detaljer (eksempel) (hidden)
B3: Cashflow, udgifter
B4: Måned | C4: -1 | D4: 1 | E4: 2 | F4: 3 | G4: 4 | H4: 5 | I4: 6 | J4: 7 | K4: 8 | L4: 9 | M4: 10 | N4: 11 | O4: 12 | P4: 13 | Q4: 14 | R4: 15 | S4: 16 | T4: 17 | U4: 18 | V4: 19 | W4: 20 | X4: 21 | Y4: 22 | Z4: 23 | AA4: 24
B5: Headhunter | C5: ='Eksempel (Udvidet)'!J42 -> 213425.925 | D5: 0 | E5: 0 | F5: 0 | G5: 0 | H5: 0 | I5: 0 | J5: 0 | K5: 0 | L5: 0 | M5: 0 | N5: 0 | O5: 0 | P5: 0 | Q5: 0 | R5: 0 | S5: 0 | T5: 0 | U5: 0 | V5: 0 | W5: 0 | X5: 0 | Y5: 0 | Z5: 0 | AA5: 0
B6: Rekrutteringsomkostninger | C6: ='Eksempel (Udvidet)'!J37+'Eksempel (Udvidet)'!J49+'Eksempel (Udvidet)'!J58+'Eksempel (Udvidet)'!J62+'Eksempel (Udvidet)'!J71 -> 36715.04375 | D6: 0 | E6: 0 | F6: 0 | G6: 0 | H6: 0 | I6: 0 | J6: 0 | K6: 0 | L6: 0 | M6: 0 | N6: 0 | O6: 0 | P6: 0 | Q6: 0 | R6: 0 | S6: 0 | T6: 0 | U6: 0 | V6: 0 | W6: 0 | X6: 0 | Y6: 0 | Z6: 0 | AA6: 0
B7: Onboarding | C7: 0 | D7: ='Eksempel (Udvidet)'!J89 -> 74004.61215 | E7: 0 | F7: 0 | G7: 0 | H7: 0 | I7: 0 | J7: 0 | K7: 0 | L7: 0 | M7: 0 | N7: 0 | O7: 0 | P7: 0 | Q7: 0 | R7: 0 | S7: 0 | T7: 0 | U7: 0 | V7: 0 | W7: 0 | X7: 0 | Y7: 0 | Z7: 0 | AA7: 0
B8: Løn til kandidat | C8: 0 | D8: ='Eksempel (Udvidet)'!$C$22/12 -> 75000 | E8: ='Eksempel (Udvidet)'!$C$22/12 -> 75000 | F8: ='Eksempel (Udvidet)'!$C$22/12 -> 75000 | G8: ='Eksempel (Udvidet)'!$C$22/12 -> 75000 | H8: ='Eksempel (Udvidet)'!$C$22/12 -> 75000 | I8: ='Eksempel (Udvidet)'!$C$22/12 -> 75000 | J8: ='Eksempel (Udvidet)'!$C$22/12 -> 75000 | K8: ='Eksempel (Udvidet)'!$C$22/12 -> 75000 | L8: ='Eksempel (Udvidet)'!$C$22/12 -> 75000 | M8: ='Eksempel (Udvidet)'!$C$22/12 -> 75000 | N8: ='Eksempel (Udvidet)'!$C$22/12 -> 75000 | O8: ='Eksempel (Udvidet)'!$C$22/12 -> 75000 | P8: ='Eksempel (Udvidet)'!$C$22/12 -> 75000 | Q8: ='Eksempel (Udvidet)'!$C$22/12 -> 75000 | R8: ='Eksempel (Udvidet)'!$C$22/12 -> 75000 | S8: ='Eksempel (Udvidet)'!$C$22/12 -> 75000 | T8: ='Eksempel (Udvidet)'!$C$22/12 -> 75000 | U8: ='Eksempel (Udvidet)'!$C$22/12 -> 75000 | V8: ='Eksempel (Udvidet)'!$C$22/12 -> 75000 | W8: ='Eksempel (Udvidet)'!$C$22/12 -> 75000 | X8: ='Eksempel (Udvidet)'!$C$22/12 -> 75000 | Y8: ='Eksempel (Udvidet)'!$C$22/12 -> 75000 | Z8: ='Eksempel (Udvidet)'!$C$22/12 -> 75000 | AA8: ='Eksempel (Udvidet)'!$C$22/12 -> 75000
B9: I alt | C9: =SUM(C5:C8) -> 250140.9688 | D9: =SUM(D5:D8) -> 149004.6122 | E9: 75000 | F9: 75000 | G9: 75000 | H9: 75000 | I9: 75000 | J9: 75000 | K9: 75000 | L9: 75000 | M9: 75000 | N9: 75000 | O9: 75000 | P9: 75000 | Q9: 75000 | R9: 75000 | S9: 75000 | T9: 75000 | U9: 75000 | V9: 75000 | W9: 75000 | X9: 75000 | Y9: 75000 | Z9: 75000 | AA9: 75000
B11: Cashflow, indtægter
B12: Værdi for virksomhed | C12: 0 | D12: =D8*D19*D20 -> 12500 | E12: =E8*E19*E20 -> 25000 | F12: =F8*F19*F20 -> 37500 | G12: 50000 | H12: 62500 | I12: =I8*I19*I20 -> 120000 | J12: =J8*J19*J20 -> 120000 | K12: 120000 | L12: 120000 | M12: 120000 | N12: 120000 | O12: 120000 | P12: 120000 | Q12: 120000 | R12: 120000 | S12: 120000 | T12: 120000 | U12: 120000 | V12: 120000 | W12: 120000 | X12: 120000 | Y12: 120000 | Z12: 120000 | AA12: 120000
B13: Ekstra | C13: 0 | D13: 0 | E13: 0 | F13: 0 | G13: 0 | H13: 0 | I13: 0 | J13: 0 | K13: 0 | L13: 0 | M13: 0 | N13: 0 | O13: 0 | P13: 0 | Q13: 0 | R13: 0 | S13: 0 | T13: 0 | U13: 0 | V13: 0 | W13: 0 | X13: 0 | Y13: 0 | Z13: 0 | AA13: 0
B14: I alt | C14: =SUM(C12:C13) -> 0 | D14: =SUM(D12:D13) -> 12500 | E14: 25000 | F14: 37500 | G14: 50000 | H14: 62500 | I14: 120000 | J14: 120000 | K14: 120000 | L14: 120000 | M14: 120000 | N14: 120000 | O14: 120000 | P14: 120000 | Q14: 120000 | R14: 120000 | S14: 120000 | T14: 120000 | U14: 120000 | V14: 120000 | W14: 120000 | X14: 120000 | Y14: 120000 | Z14: 120000 | AA14: 120000
B16: Omkostning, hvis stop efter md. | C16: 0 | D16: =C9+D9-D14 -> 386645.5809 | E16: =D16+E9-E14 -> 436645.5809 | F16: =E16+F9-F14 -> 474145.5809 | G16: =F16+G9-G14 -> 499145.5809 | H16: 511645.5809 | I16: 466645.5809 | J16: 421645.5809 | K16: 376645.5809 | L16: 331645.5809 | M16: 286645.5809 | N16: 241645.5809 | O16: 196645.5809 | P16: 151645.5809 | Q16: 106645.5809 | R16: 61645.5809 | S16: 16645.5809 | T16: =S16+T9-T14 -> -28354.4191 | U16: -73354.4191 | V16: -118354.4191 | W16: -163354.4191 | X16: -208354.4191 | Y16: -253354.4191 | Z16: -298354.4191 | AA16: -343354.4191
B17: Rene rekrutteringsomkostninger | C17: 0 | D17: =C9+D9-D8 -> 324145.5809 | E17: =D17+E9-E8 -> 324145.5809 | F17: 324145.5809 | G17: 324145.5809 | H17: 324145.5809 | I17: 324145.5809 | J17: 324145.5809 | K17: 324145.5809 | L17: 324145.5809 | M17: 324145.5809 | N17: 324145.5809 | O17: 324145.5809 | P17: 324145.5809 | Q17: 324145.5809 | R17: 324145.5809 | S17: 324145.5809 | T17: 324145.5809 | U17: 324145.5809 | V17: 324145.5809 | W17: 324145.5809 | X17: 324145.5809 | Y17: 324145.5809 | Z17: 324145.5809 | AA17: 324145.5809
B19: Effektivitet | C19: 0 | D19: =D25 -> 0.1666666667 | E19: =E25 -> 0.3333333333 | F19: 0.5 | G19: 0.6666666667 | H19: 0.8333333333 | I19: 1 | J19: 1 | K19: 1 | L19: 1 | M19: 1 | N19: 1 | O19: 1 | P19: 1 | Q19: 1 | R19: 1 | S19: 1 | T19: 1 | U19: 1 | V19: 1 | W19: 1 | X19: 1 | Y19: 1 | Z19: 1 | AA19: 1
B20: Faktureringsgrad | C20: 0 | D20: =IF(D19<1,1,'Stamoplysninger (eksempel)'!$D$5) -> 1 | E20: =IF(E19<1,1,'Stamoplysninger (eksempel)'!$D$5) -> 1 | F20: =IF(F19<1,1,'Stamoplysninger (eksempel)'!$D$5) -> 1 | G20: =IF(G19<1,1,'Stamoplysninger (eksempel)'!$D$5) -> 1 | H20: =IF(H19<1,1,'Stamoplysninger (eksempel)'!$D$5) -> 1 | I20: =IF(I19<1,1,'Stamoplysninger (eksempel)'!$D$5) -> 1.6 | J20: =IF(J19<1,1,'Stamoplysninger (eksempel)'!$D$5) -> 1.6 | K20: =IF(K19<1,1,'Stamoplysninger (eksempel)'!$D$5) -> 1.6 | L20: =IF(L19<1,1,'Stamoplysninger (eksempel)'!$D$5) -> 1.6 | M20: =IF(M19<1,1,'Stamoplysninger (eksempel)'!$D$5) -> 1.6 | N20: =IF(N19<1,1,'Stamoplysninger (eksempel)'!$D$5) -> 1.6 | O20: =IF(O19<1,1,'Stamoplysninger (eksempel)'!$D$5) -> 1.6 | P20: =IF(P19<1,1,'Stamoplysninger (eksempel)'!$D$5) -> 1.6 | Q20: =IF(Q19<1,1,'Stamoplysninger (eksempel)'!$D$5) -> 1.6 | R20: =IF(R19<1,1,'Stamoplysninger (eksempel)'!$D$5) -> 1.6 | S20: =IF(S19<1,1,'Stamoplysninger (eksempel)'!$D$5) -> 1.6 | T20: =IF(T19<1,1,'Stamoplysninger (eksempel)'!$D$5) -> 1.6 | U20: =IF(U19<1,1,'Stamoplysninger (eksempel)'!$D$5) -> 1.6 | V20: =IF(V19<1,1,'Stamoplysninger (eksempel)'!$D$5) -> 1.6 | W20: =IF(W19<1,1,'Stamoplysninger (eksempel)'!$D$5) -> 1.6 | X20: =IF(X19<1,1,'Stamoplysninger (eksempel)'!$D$5) -> 1.6 | Y20: =IF(Y19<1,1,'Stamoplysninger (eksempel)'!$D$5) -> 1.6 | Z20: =IF(Z19<1,1,'Stamoplysninger (eksempel)'!$D$5) -> 1.6 | AA20: =IF(AA19<1,1,'Stamoplysninger (eksempel)'!$D$5) -> 1.6
B23: Effektivitet
B24: Måned | D24: 1 | E24: 2 | F24: 3 | G24: 4 | H24: 5 | I24: 6 | J24: 7 | K24: 8 | L24: 9 | M24: 10 | N24: 11 | O24: 12 | P24: 13 | Q24: 14 | R24: 15 | S24: 16 | T24: 17 | U24: 18 | V24: 19 | W24: 20 | X24: 21 | Y24: 22 | Z24: 23 | AA24: 24
B25: Lineær | D25: =MIN(D24,'Eksempel (Udvidet)'!$C$25)/'Eksempel (Udvidet)'!$C$25 -> 0.1666666667 | E25: =MIN(E24,'Eksempel (Udvidet)'!$C$25)/'Eksempel (Udvidet)'!$C$25 -> 0.3333333333 | F25: =MIN(F24,'Eksempel (Udvidet)'!$C$25)/'Eksempel (Udvidet)'!$C$25 -> 0.5 | G25: =MIN(G24,'Eksempel (Udvidet)'!$C$25)/'Eksempel (Udvidet)'!$C$25 -> 0.6666666667 | H25: =MIN(H24,'Eksempel (Udvidet)'!$C$25)/'Eksempel (Udvidet)'!$C$25 -> 0.8333333333 | I25: =MIN(I24,'Eksempel (Udvidet)'!$C$25)/'Eksempel (Udvidet)'!$C$25 -> 1 | J25: =MIN(J24,'Eksempel (Udvidet)'!$C$25)/'Eksempel (Udvidet)'!$C$25 -> 1 | K25: =MIN(K24,'Eksempel (Udvidet)'!$C$25)/'Eksempel (Udvidet)'!$C$25 -> 1 | L25: =MIN(L24,'Eksempel (Udvidet)'!$C$25)/'Eksempel (Udvidet)'!$C$25 -> 1 | M25: =MIN(M24,'Eksempel (Udvidet)'!$C$25)/'Eksempel (Udvidet)'!$C$25 -> 1 | N25: =MIN(N24,'Eksempel (Udvidet)'!$C$25)/'Eksempel (Udvidet)'!$C$25 -> 1 | O25: =MIN(O24,'Eksempel (Udvidet)'!$C$25)/'Eksempel (Udvidet)'!$C$25 -> 1 | P25: =MIN(P24,'Eksempel (Udvidet)'!$C$25)/'Eksempel (Udvidet)'!$C$25 -> 1 | Q25: =MIN(Q24,'Eksempel (Udvidet)'!$C$25)/'Eksempel (Udvidet)'!$C$25 -> 1 | R25: =MIN(R24,'Eksempel (Udvidet)'!$C$25)/'Eksempel (Udvidet)'!$C$25 -> 1 | S25: =MIN(S24,'Eksempel (Udvidet)'!$C$25)/'Eksempel (Udvidet)'!$C$25 -> 1 | T25: =MIN(T24,'Eksempel (Udvidet)'!$C$25)/'Eksempel (Udvidet)'!$C$25 -> 1 | U25: =MIN(U24,'Eksempel (Udvidet)'!$C$25)/'Eksempel (Udvidet)'!$C$25 -> 1 | V25: =MIN(V24,'Eksempel (Udvidet)'!$C$25)/'Eksempel (Udvidet)'!$C$25 -> 1 | W25: =MIN(W24,'Eksempel (Udvidet)'!$C$25)/'Eksempel (Udvidet)'!$C$25 -> 1 | X25: =MIN(X24,'Eksempel (Udvidet)'!$C$25)/'Eksempel (Udvidet)'!$C$25 -> 1 | Y25: =MIN(Y24,'Eksempel (Udvidet)'!$C$25)/'Eksempel (Udvidet)'!$C$25 -> 1 | Z25: =MIN(Z24,'Eksempel (Udvidet)'!$C$25)/'Eksempel (Udvidet)'!$C$25 -> 1 | AA25: =MIN(AA24,'Eksempel (Udvidet)'!$C$25)/'Eksempel (Udvidet)'!$C$25 -> 1
B26: Power | D26: =$D$27^(1-(MIN(D24,'Eksempel (Udvidet)'!$C$25)/'Eksempel (Udvidet)'!$C$25)) -> 0.03838766207 | E26: =$D$27^(1-(MIN(E24,'Eksempel (Udvidet)'!$C$25)/'Eksempel (Udvidet)'!$C$25)) -> 0.07368062997 | F26: =$D$27^(1-(MIN(F24,'Eksempel (Udvidet)'!$C$25)/'Eksempel (Udvidet)'!$C$25)) -> 0.1414213562 | G26: =$D$27^(1-(MIN(G24,'Eksempel (Udvidet)'!$C$25)/'Eksempel (Udvidet)'!$C$25)) -> 0.2714417617 | H26: =$D$27^(1-(MIN(H24,'Eksempel (Udvidet)'!$C$25)/'Eksempel (Udvidet)'!$C$25)) -> 0.521000731 | I26: =$D$27^(1-(MIN(I24,'Eksempel (Udvidet)'!$C$25)/'Eksempel (Udvidet)'!$C$25)) -> 1 | J26: =$D$27^(1-(MIN(J24,'Eksempel (Udvidet)'!$C$25)/'Eksempel (Udvidet)'!$C$25)) -> 1 | K26: =$D$27^(1-(MIN(K24,'Eksempel (Udvidet)'!$C$25)/'Eksempel (Udvidet)'!$C$25)) -> 1 | L26: =$D$27^(1-(MIN(L24,'Eksempel (Udvidet)'!$C$25)/'Eksempel (Udvidet)'!$C$25)) -> 1 | M26: =$D$27^(1-(MIN(M24,'Eksempel (Udvidet)'!$C$25)/'Eksempel (Udvidet)'!$C$25)) -> 1 | N26: =$D$27^(1-(MIN(N24,'Eksempel (Udvidet)'!$C$25)/'Eksempel (Udvidet)'!$C$25)) -> 1 | O26: =$D$27^(1-(MIN(O24,'Eksempel (Udvidet)'!$C$25)/'Eksempel (Udvidet)'!$C$25)) -> 1 | P26: =$D$27^(1-(MIN(P24,'Eksempel (Udvidet)'!$C$25)/'Eksempel (Udvidet)'!$C$25)) -> 1 | Q26: =$D$27^(1-(MIN(Q24,'Eksempel (Udvidet)'!$C$25)/'Eksempel (Udvidet)'!$C$25)) -> 1 | R26: =$D$27^(1-(MIN(R24,'Eksempel (Udvidet)'!$C$25)/'Eksempel (Udvidet)'!$C$25)) -> 1 | S26: =$D$27^(1-(MIN(S24,'Eksempel (Udvidet)'!$C$25)/'Eksempel (Udvidet)'!$C$25)) -> 1 | T26: =$D$27^(1-(MIN(T24,'Eksempel (Udvidet)'!$C$25)/'Eksempel (Udvidet)'!$C$25)) -> 1 | U26: =$D$27^(1-(MIN(U24,'Eksempel (Udvidet)'!$C$25)/'Eksempel (Udvidet)'!$C$25)) -> 1 | V26: =$D$27^(1-(MIN(V24,'Eksempel (Udvidet)'!$C$25)/'Eksempel (Udvidet)'!$C$25)) -> 1 | W26: =$D$27^(1-(MIN(W24,'Eksempel (Udvidet)'!$C$25)/'Eksempel (Udvidet)'!$C$25)) -> 1 | X26: =$D$27^(1-(MIN(X24,'Eksempel (Udvidet)'!$C$25)/'Eksempel (Udvidet)'!$C$25)) -> 1 | Y26: =$D$27^(1-(MIN(Y24,'Eksempel (Udvidet)'!$C$25)/'Eksempel (Udvidet)'!$C$25)) -> 1 | Z26: =$D$27^(1-(MIN(Z24,'Eksempel (Udvidet)'!$C$25)/'Eksempel (Udvidet)'!$C$25)) -> 1 | AA26: =$D$27^(1-(MIN(AA24,'Eksempel (Udvidet)'!$C$25)/'Eksempel (Udvidet)'!$C$25)) -> 1
B27: Læringskurve | D27: 0.02

Sheet Detaljer (Udvidet) (hidden)
B3: Cashflow, udgifter
B4: Måned | C4: -1 | D4: 1 | E4: 2 | F4: 3 | G4: 4 | H4: 5 | I4: 6 | J4: 7 | K4: 8 | L4: 9 | M4: 10 | N4: 11 | O4: 12 | P4: 13 | Q4: 14 | R4: 15 | S4: 16 | T4: 17 | U4: 18 | V4: 19 | W4: 20 | X4: 21 | Y4: 22 | Z4: 23 | AA4: 24
B5: Headhunter | C5: ='Udvidet input'!J42 -> 0 | D5: 0 | E5: 0 | F5: 0 | G5: 0 | H5: 0 | I5: 0 | J5: 0 | K5: 0 | L5: 0 | M5: 0 | N5: 0 | O5: 0 | P5: 0 | Q5: 0 | R5: 0 | S5: 0 | T5: 0 | U5: 0 | V5: 0 | W5: 0 | X5: 0 | Y5: 0 | Z5: 0 | AA5: 0
B6: Rekrutteringsomkostninger | C6: ='Udvidet input'!J37+'Udvidet input'!J49+'Udvidet input'!J58+'Udvidet input'!J62+'Udvidet input'!J71 -> 0 | D6: 0 | E6: 0 | F6: 0 | G6: 0 | H6: 0 | I6: 0 | J6: 0 | K6: 0 | L6: 0 | M6: 0 | N6: 0 | O6: 0 | P6: 0 | Q6: 0 | R6: 0 | S6: 0 | T6: 0 | U6: 0 | V6: 0 | W6: 0 | X6: 0 | Y6: 0 | Z6: 0 | AA6: 0
B7: Onboarding | C7: 0 | D7: ='Udvidet input'!J89 -> 0 | E7: 0 | F7: 0 | G7: 0 | H7: 0 | I7: 0 | J7: 0 | K7: 0 | L7: 0 | M7: 0 | N7: 0 | O7: 0 | P7: 0 | Q7: 0 | R7: 0 | S7: 0 | T7: 0 | U7: 0 | V7: 0 | W7: 0 | X7: 0 | Y7: 0 | Z7: 0 | AA7: 0
B8: Løn til kandidat | C8: 0 | D8: ='Udvidet input'!$C$22/12 -> 0 | E8: ='Udvidet input'!$C$22/12 -> 0 | F8: ='Udvidet input'!$C$22/12 -> 0 | G8: ='Udvidet input'!$C$22/12 -> 0 | H8: ='Udvidet input'!$C$22/12 -> 0 | I8: ='Udvidet input'!$C$22/12 -> 0 | J8: ='Udvidet input'!$C$22/12 -> 0 | K8: ='Udvidet input'!$C$22/12 -> 0 | L8: ='Udvidet input'!$C$22/12 -> 0 | M8: ='Udvidet input'!$C$22/12 -> 0 | N8: ='Udvidet input'!$C$22/12 -> 0 | O8: ='Udvidet input'!$C$22/12 -> 0 | P8: ='Udvidet input'!$C$22/12 -> 0 | Q8: ='Udvidet input'!$C$22/12 -> 0 | R8: ='Udvidet input'!$C$22/12 -> 0 | S8: ='Udvidet input'!$C$22/12 -> 0 | T8: ='Udvidet input'!$C$22/12 -> 0 | U8: ='Udvidet input'!$C$22/12 -> 0 | V8: ='Udvidet input'!$C$22/12 -> 0 | W8: ='Udvidet input'!$C$22/12 -> 0 | X8: ='Udvidet input'!$C$22/12 -> 0 | Y8: ='Udvidet input'!$C$22/12 -> 0 | Z8: ='Udvidet input'!$C$22/12 -> 0 | AA8: ='Udvidet input'!$C$22/12 -> 0
B9: I alt | C9: =SUM(C5:C8) -> 0 | D9: =SUM(D5:D8) -> 0 | E9: 0 | F9: 0 | G9: 0 | H9: 0 | I9: 0 | J9: 0 | K9: 0 | L9: 0 | M9: 0 | N9: 0 | O9: 0 | P9: 0 | Q9: 0 | R9: 0 | S9: 0 | T9: 0 | U9: 0 | V9: 0 | W9: 0 | X9: 0 | Y9: 0 | Z9: 0 | AA9: 0
B11: Cashflow, indtægter
B12: Værdi for virksomhed | C12: 0 | D12: =D8*D19*D20 -> 0 | E12: 0 | F12: 0 | G12: 0 | H12: 0 | I12: 0 | J12: 0 | K12: 0 | L12: 0 | M12: 0 | N12: 0 | O12: 0 | P12: 0 | Q12: 0 | R12: 0 | S12: 0 | T12: 0 | U12: 0 | V12: 0 | W12: 0 | X12: 0 | Y12: 0 | Z12: 0 | AA12: 0
B13: Ekstra | C13: 0 | D13: 0 | E13: 0 | F13: 0 | G13: 0 | H13: 0 | I13: 0 | J13: 0 | K13: 0 | L13: 0 | M13: 0 | N13: 0 | O13: 0 | P13: 0 | Q13: 0 | R13: 0 | S13: 0 | T13: 0 | U13: 0 | V13: 0 | W13: 0 | X13: 0 | Y13: 0 | Z13: 0 | AA13: 0
B14: I alt | C14: =SUM(C12:C13) -> 0 | D14: =SUM(D12:D13) -> 0 | E14: 0 | F14: 0 | G14: 0 | H14: 0 | I14: 0 | J14: 0 | K14: 0 | L14: 0 | M14: 0 | N14: 0 | O14: 0 | P14: 0 | Q14: 0 | R14: 0 | S14: 0 | T14: 0 | U14: 0 | V14: 0 | W14: 0 | X14: 0 | Y14: 0 | Z14: 0 | AA14: 0
B16: Omkostning, hvis stop efter md. | C16: 0 | D16: =C9+D9-D14 -> 0 | E16: =D16+E9-E14 -> 0 | F16: =E16+F9-F14 -> 0 | G16: =F16+G9-G14 -> 0 | H16: 0 | I16: 0 | J16: 0 | K16: 0 | L16: 0 | M16: 0 | N16: 0 | O16: 0 | P16: 0 | Q16: 0 | R16: 0 | S16: 0 | T16: 0 | U16: 0 | V16: 0 | W16: 0 | X16: 0 | Y16: 0 | Z16: 0 | AA16: 0
B17: Rene rekrutteringsomkostninger | C17: 0 | D17: =C9+D9-D8 -> 0 | E17: =D17+E9-E8 -> 0 | F17: 0 | G17: =F17+G9-G8 -> 0 | H17: 0 | I17: 0 | J17: 0 | K17: 0 | L17: 0 | M17: 0 | N17: 0 | O17: 0 | P17: 0 | Q17: 0 | R17: 0 | S17: 0 | T17: 0 | U17: 0 | V17: 0 | W17: 0 | X17: 0 | Y17: 0 | Z17: 0 | AA17: 0
B19: Effektivitet | C19: 0 | D19: =D25 -> 0.1666666667 | E19: =E25 -> 0.3333333333 | F19: =F25 -> 0.5 | G19: 0.6666666667 | H19: 0.8333333333 | I19: 1 | J19: 1 | K19: 1 | L19: 1 | M19: 1 | N19: 1 | O19: 1 | P19: 1 | Q19: 1 | R19: 1 | S19: 1 | T19: 1 | U19: 1 | V19: 1 | W19: 1 | X19: 1 | Y19: 1 | Z19: 1 | AA19: 1
B20: Faktureringsgrad | C20: 0 | D20: =IF(D19<1,1,Stamoplysninger!$D$5) -> 1 | E20: =IF(E19<1,1,Stamoplysninger!$D$5) -> 1 | F20: =IF(F19<1,1,Stamoplysninger!$D$5) -> 1 | G20: =IF(G19<1,1,Stamoplysninger!$D$5) -> 1 | H20: =IF(H19<1,1,Stamoplysninger!$D$5) -> 1 | I20: =IF(I19<1,1,Stamoplysninger!$D$5) -> 1.6 | J20: =IF(J19<1,1,Stamoplysninger!$D$5) -> 1.6 | K20: =IF(K19<1,1,Stamoplysninger!$D$5) -> 1.6 | L20: =IF(L19<1,1,Stamoplysninger!$D$5) -> 1.6 | M20: =IF(M19<1,1,Stamoplysninger!$D$5) -> 1.6 | N20: =IF(N19<1,1,Stamoplysninger!$D$5) -> 1.6 | O20: =IF(O19<1,1,Stamoplysninger!$D$5) -> 1.6 | P20: =IF(P19<1,1,Stamoplysninger!$D$5) -> 1.6 | Q20: =IF(Q19<1,1,Stamoplysninger!$D$5) -> 1.6 | R20: =IF(R19<1,1,Stamoplysninger!$D$5) -> 1.6 | S20: =IF(S19<1,1,Stamoplysninger!$D$5) -> 1.6 | T20: =IF(T19<1,1,Stamoplysninger!$D$5) -> 1.6 | U20: =IF(U19<1,1,Stamoplysninger!$D$5) -> 1.6 | V20: =IF(V19<1,1,Stamoplysninger!$D$5) -> 1.6 | W20: =IF(W19<1,1,Stamoplysninger!$D$5) -> 1.6 | X20: =IF(X19<1,1,Stamoplysninger!$D$5) -> 1.6 | Y20: =IF(Y19<1,1,Stamoplysninger!$D$5) -> 1.6 | Z20: =IF(Z19<1,1,Stamoplysninger!$D$5) -> 1.6 | AA20: =IF(AA19<1,1,Stamoplysninger!$D$5) -> 1.6
B23: Effektivitet
B24: Måned | D24: 1 | E24: 2 | F24: 3 | G24: 4 | H24: 5 | I24: 6 | J24: 7 | K24: 8 | L24: 9 | M24: 10 | N24: 11 | O24: 12 | P24: 13 | Q24: 14 | R24: 15 | S24: 16 | T24: 17 | U24: 18 | V24: 19 | W24: 20 | X24: 21 | Y24: 22 | Z24: 23 | AA24: 24
B25: Lineær | D25: =MIN(D24,'Udvidet input'!$C$25)/'Udvidet input'!$C$25 -> 0.1666666667 | E25: =MIN(E24,'Udvidet input'!$C$25)/'Udvidet input'!$C$25 -> 0.3333333333 | F25: =MIN(F24,'Udvidet input'!$C$25)/'Udvidet input'!$C$25 -> 0.5 | G25: =MIN(G24,'Udvidet input'!$C$25)/'Udvidet input'!$C$25 -> 0.6666666667 | H25: =MIN(H24,'Udvidet input'!$C$25)/'Udvidet input'!$C$25 -> 0.8333333333 | I25: =MIN(I24,'Udvidet input'!$C$25)/'Udvidet input'!$C$25 -> 1 | J25: =MIN(J24,'Udvidet input'!$C$25)/'Udvidet input'!$C$25 -> 1 | K25: =MIN(K24,'Udvidet input'!$C$25)/'Udvidet input'!$C$25 -> 1 | L25: =MIN(L24,'Udvidet input'!$C$25)/'Udvidet input'!$C$25 -> 1 | M25: =MIN(M24,'Udvidet input'!$C$25)/'Udvidet input'!$C$25 -> 1 | N25: =MIN(N24,'Udvidet input'!$C$25)/'Udvidet input'!$C$25 -> 1 | O25: =MIN(O24,'Udvidet input'!$C$25)/'Udvidet input'!$C$25 -> 1 | P25: =MIN(P24,'Udvidet input'!$C$25)/'Udvidet input'!$C$25 -> 1 | Q25: =MIN(Q24,'Udvidet input'!$C$25)/'Udvidet input'!$C$25 -> 1 | R25: =MIN(R24,'Udvidet input'!$C$25)/'Udvidet input'!$C$25 -> 1 | S25: =MIN(S24,'Udvidet input'!$C$25)/'Udvidet input'!$C$25 -> 1 | T25: =MIN(T24,'Udvidet input'!$C$25)/'Udvidet input'!$C$25 -> 1 | U25: =MIN(U24,'Udvidet input'!$C$25)/'Udvidet input'!$C$25 -> 1 | V25: =MIN(V24,'Udvidet input'!$C$25)/'Udvidet input'!$C$25 -> 1 | W25: =MIN(W24,'Udvidet input'!$C$25)/'Udvidet input'!$C$25 -> 1 | X25: =MIN(X24,'Udvidet input'!$C$25)/'Udvidet input'!$C$25 -> 1 | Y25: =MIN(Y24,'Udvidet input'!$C$25)/'Udvidet input'!$C$25 -> 1 | Z25: =MIN(Z24,'Udvidet input'!$C$25)/'Udvidet input'!$C$25 -> 1 | AA25: =MIN(AA24,'Udvidet input'!$C$25)/'Udvidet input'!$C$25 -> 1
B26: Power | D26: =$D$27^(1-(MIN(D24,'Udvidet input'!$C$25)/'Udvidet input'!$C$25)) -> 0.03838766207 | E26: =$D$27^(1-(MIN(E24,'Udvidet input'!$C$25)/'Udvidet input'!$C$25)) -> 0.07368062997 | F26: =$D$27^(1-(MIN(F24,'Udvidet input'!$C$25)/'Udvidet input'!$C$25)) -> 0.1414213562 | G26: =$D$27^(1-(MIN(G24,'Udvidet input'!$C$25)/'Udvidet input'!$C$25)) -> 0.2714417617 | H26: =$D$27^(1-(MIN(H24,'Udvidet input'!$C$25)/'Udvidet input'!$C$25)) -> 0.521000731 | I26: =$D$27^(1-(MIN(I24,'Udvidet input'!$C$25)/'Udvidet input'!$C$25)) -> 1 | J26: =$D$27^(1-(MIN(J24,'Udvidet input'!$C$25)/'Udvidet input'!$C$25)) -> 1 | K26: =$D$27^(1-(MIN(K24,'Udvidet input'!$C$25)/'Udvidet input'!$C$25)) -> 1 | L26: =$D$27^(1-(MIN(L24,'Udvidet input'!$C$25)/'Udvidet input'!$C$25)) -> 1 | M26: =$D$27^(1-(MIN(M24,'Udvidet input'!$C$25)/'Udvidet input'!$C$25)) -> 1 | N26: =$D$27^(1-(MIN(N24,'Udvidet input'!$C$25)/'Udvidet input'!$C$25)) -> 1 | O26: =$D$27^(1-(MIN(O24,'Udvidet input'!$C$25)/'Udvidet input'!$C$25)) -> 1 | P26: =$D$27^(1-(MIN(P24,'Udvidet input'!$C$25)/'Udvidet input'!$C$25)) -> 1 | Q26: =$D$27^(1-(MIN(Q24,'Udvidet input'!$C$25)/'Udvidet input'!$C$25)) -> 1 | R26: =$D$27^(1-(MIN(R24,'Udvidet input'!$C$25)/'Udvidet input'!$C$25)) -> 1 | S26: =$D$27^(1-(MIN(S24,'Udvidet input'!$C$25)/'Udvidet input'!$C$25)) -> 1 | T26: =$D$27^(1-(MIN(T24,'Udvidet input'!$C$25)/'Udvidet input'!$C$25)) -> 1 | U26: =$D$27^(1-(MIN(U24,'Udvidet input'!$C$25)/'Udvidet input'!$C$25)) -> 1 | V26: =$D$27^(1-(MIN(V24,'Udvidet input'!$C$25)/'Udvidet input'!$C$25)) -> 1 | W26: =$D$27^(1-(MIN(W24,'Udvidet input'!$C$25)/'Udvidet input'!$C$25)) -> 1 | X26: =$D$27^(1-(MIN(X24,'Udvidet input'!$C$25)/'Udvidet input'!$C$25)) -> 1 | Y26: =$D$27^(1-(MIN(Y24,'Udvidet input'!$C$25)/'Udvidet input'!$C$25)) -> 1 | Z26: =$D$27^(1-(MIN(Z24,'Udvidet input'!$C$25)/'Udvidet input'!$C$25)) -> 1 | AA26: =$D$27^(1-(MIN(AA24,'Udvidet input'!$C$25)/'Udvidet input'!$C$25)) -> 1
B27: Læringskurve | D27: 0.02
B36: Rekrutteringsomkostninger | C36: =SUM(C5:C7) -> 0 | D36: =C36+SUM(D5:D7) -> 0 | E36: 0 | F36: 0 | G36: 0 | H36: 0 | I36: 0 | J36: 0 | K36: 0 | L36: 0 | M36: 0 | N36: 0 | O36: =N36+SUM(O5:O7) -> 0 | P36: 0 | Q36: 0 | R36: 0 | S36: 0 | T36: 0 | U36: 0 | V36: 0 | W36: 0 | X36: 0 | Y36: 0 | Z36: 0 | AA36: 0
B37: Totalomkostninger | C37: =C36+C8 -> 0 | D37: =C37+D9 -> 0 | E37: =D37+E9 -> 0 | F37: =E37+F9 -> 0 | G37: =F37+G9 -> 0 | H37: =G37+H9 -> 0 | I37: 0 | J37: 0 | K37: 0 | L37: 0 | M37: 0 | N37: 0 | O37: 0 | P37: 0 | Q37: 0 | R37: 0 | S37: 0 | T37: 0 | U37: 0 | V37: 0 | W37: 0 | X37: 0 | Y37: 0 | Z37: 0 | AA37: 0
B38: Indtægter | C38: =C14 -> 0 | D38: =C38+D14 -> 0 | E38: =D38+E14 -> 0 | F38: =E38+F14 -> 0 | G38: =F38+G14 -> 0 | H38: 0 | I38: 0 | J38: 0 | K38: 0 | L38: 0 | M38: 0 | N38: 0 | O38: 0 | P38: 0 | Q38: 0 | R38: 0 | S38: 0 | T38: 0 | U38: 0 | V38: 0 | W38: 0 | X38: 0 | Y38: 0 | Z38: 0 | AA38: 0
B39: ROI (rekruttering) | C39: =(C38-C36)/C36 ->  | D39: =(D38-D36)/D36 ->  | E39: =(E38-E36)/E36 ->  | F39: =(F38-F36)/F36 ->  | G39: =(G38-G36)/G36 -> 
B40: ROI (total) | C40: =(C38-C37)/C37 ->  | D40: =(D38-D37)/D37 ->  | E40: =(E38-E37)/E37 ->  | F40: =(F38-F37)/F37 -> 

Sheet Stamoplysninger (hidden)
C2: Stamoplysning til beregninger
C4: Årsværk | D4: ='Udvidet input'!C24 -> 0
C5: Effektivitet | D5: ='Udvidet input'!C26 -> 1.6
